bitfinex-derivatives/quotes_ETHF0:USTF0_20250620
["timestamp","ask_amount","ask_price","bid_price","bid_amount"]
[1750380227800,0.7913,2527.1,2527.0,0.79127]
[1750380229693,0.7913,2527.0,2526.9,3.99912]
[1750380230392,0.86063781,2527.0,2526.9,3.99912]
[1750380231913,0.86063781,2527.0,2526.9,3.2078]
[1750380234305,0.86063781,2527.0,2526.9,3.99914]
[1750380235306,0.86063781,2527.0,2526.9,3.2078]
[1750380236106,0.86063781,2527.0,2526.9,3.99914]
[1750380236308,0.86063781,2527.0,2526.9,3.2078]
[1750380236808,0.86063781,2527.0,2526.9,3.99914]
[1750380238216,0.86063781,2527.0,2526.9,3.2078]
[1750380240003,0.7914,2526.7,2526.6,4.78190405]
[1750380240210,3.29672066,2526.7,2526.6,3.2078]
[1750380240408,0.79146,2526.5,2526.4,1.57410405]
[1750380240609,0.79146,2526.5,2526.3,3.2078]
[1750380240610,0.79149,2526.4,2526.3,3.2078]
[1750380240810,2.80819,2526.4,2526.3,3.2078]
[1750380242221,1.44759,2526.4,2526.3,3.2078]
[1750380242603,1.44759,2526.4,2526.3,5.57342405]
[1750380242806,1.44759,2526.4,2526.3,3.2078]
[1750380243106,1.44759,2526.4,2526.3,3.99932]
[1750380243308,1.44759,2526.4,2526.3,3.2078]
[1750380245617,1.51692781,2526.4,2526.3,3.2078]
[1750380246322,2.79812781,2526.4,2526.3,3.2078]
[1750380256216,7.69092781,2526.4,2526.3,3.2078]
[1750380258421,0.86082781,2526.4,2526.3,5.71312066]
[1750380258620,0.86082781,2526.4,2526.3,6.50464066]
[1750380259624,0.86082781,2526.4,2526.3,5.71312066]
[1750380259824,0.86082781,2526.4,2526.3,3.2078]
[1750380260330,0.86082781,2526.4,2526.3,3.99932]
[1750380260631,0.86082781,2526.4,2526.3,3.2078]
[1750380266135,0.86082781,2526.4,2526.3,3.891]
[1750380266335,0.86082781,2526.4,2526.3,4.78190405]
[1750380268332,0.86082781,2526.4,2526.3,6.50464066]
[1750380268537,0.86082781,2526.4,2526.3,10.83787565]
[1750380268722,0.06933781,2526.4,2526.3,8.47464066]
[1750380268926,0.06933781,2527.2,2526.6,1.97854]
[1750380269126,0.06933781,2527.2,2526.9,3.29664066]
[1750380269127,0.79135,2527.0,2526.9,3.29664066]
[1750380269322,0.79135,2527.0,2526.9,6.17433772]
[1750380269528,0.79129,2527.1,2527.0,0.79127]
[1750380269732,0.79129,2527.1,2527.0,3.67445742]
[1750380269933,0.79129,2527.1,2527.0,2.88315742]
[1750380270133,0.79129,2527.1,2527.0,1.57405742]
[1750380270333,0.7913,2527.0,2526.9,4.07937808]
[1750380270733,0.7913,2527.0,2526.9,4.87071808]
[1750380270934,0.7913,2527.0,2526.9,4.07937808]
[1750380272931,0.7913,2527.0,2526.9,4.87071808]
[1750380273131,0.7913,2527.0,2526.9,5.45007808]
[1750380273330,0.7913,2527.0,2526.9,3.87602066]
[1750380273530,0.7913,2527.0,2526.9,2.50532066]
[1750380273740,0.79134,2526.9,2526.8,4.78185742]
[1750380277335,0.79134,2526.9,2526.8,3.2078]
[1750380278232,4.66146066,2526.9,2526.8,3.2078]
[1750380278837,2.15614,2526.9,2526.8,3.2078]
[1750380290243,2.22547781,2526.9,2526.8,3.2078]
[1750380291441,0.86067781,2526.9,2526.8,3.2078]
[1750380291641,0.86067781,2526.9,2526.8,4.78185742]
[1750380291941,0.86067781,2526.9,2526.8,5.57322742]
[1750380292540,0.86067781,2526.9,2526.8,4.78185742]
[1750380292948,0.86067781,2526.9,2526.8,5.57322742]
[1750380293840,0.86067781,2526.9,2526.8,6.87282742]
[1750380294344,0.79134,2526.9,2526.8,6.87282742]
[1750380295247,0.86067781,2526.9,2526.8,5.29877]
[1750380295643,0.86067781,2526.9,2526.8,7.65991559]
[1750380296149,0.06933781,2526.9,2526.8,7.65991559]
[1750380296642,0.06933781,2526.9,2526.8,5.29877]
[1750380297440,0.06933781,2526.9,2526.8,10.29877]
[1750380297642,0.7913,2527.1,2527.0,0.79125]
[1750380297944,0.7913,2527.1,2527.0,5.65649442]
[1750380298139,0.7913,2527.1,2527.0,3.29657066]
[1750380298336,0.7913,2527.1,2527.0,3.94477066]
[1750380299142,0.7913,2527.1,2527.0,3.15352066]
[1750380299344,0.7913,2527.1,2527.0,2.3604308]
[1750380300248,0.7913,2527.1,2527.0,3.1517408]
[1750380300942,0.7913,2527.1,2527.0,0.79131]
[1750380301345,0.79127,2527.2,2527.1,0.79127]
[1750380301548,0.79127,2527.2,2527.1,7.7082341]
[1750380301748,0.79127,2527.2,2527.1,8.3849341]
[1750380301949,0.79122,2527.4,2527.3,0.79118]
[1750380302155,0.79122,2527.4,2527.3,4.86956765]
[1750380302446,0.79116,2527.6,2527.5,0.79112]
[1750380302643,0.79116,2527.6,2527.5,8.07661924]
[1750380303145,0.79116,2527.6,2527.5,6.50424066]
[1750380303641,0.79116,2527.6,2527.5,7.15024066]
[1750380304551,0.86049781,2527.6,2527.5,3.8538]
[1750380305052,0.86049781,2527.6,2527.5,4.64495]
[1750380306153,0.86049781,2527.6,2527.5,3.8538]
[1750380307456,0.86049781,2527.6,2527.5,4.64495]
[1750380307858,0.86049781,2527.6,2527.5,7.15027066]
[1750380308558,0.86049781,2527.6,2527.5,6.35912066]
[1750380309360,0.86049781,2527.6,2527.5,7.15027066]
[1750380309652,0.79112,2527.6,2527.5,7.15024066]
[1750380309860,0.79112,2527.6,2527.5,8.51634066]
[1750380310252,0.7911,2527.7,2527.6,0.79109]
[1750380310454,0.7911,2527.7,2527.6,6.23162067]
[1750380310657,0.6537,2528.1,2527.6,3.87142066]
[1750380310961,0.79099,2528.0,2527.9,5.71312066]
[1750380311458,0.79099,2528.0,2527.9,7.17774066]
[1750380312756,0.79099,2528.0,2527.9,3.2078]
[1750380316153,0.79099,2528.0,2527.9,3.99882]
[1750380316354,0.79099,2528.0,2527.9,3.2078]
[1750380317159,0.79099,2528.0,2527.9,3.99882]
[1750380317355,0.79099,2528.0,2527.9,3.2078]
[1750380319660,0.86032781,2528.0,2527.9,3.2078]
[1750380320057,0.86032781,2528.0,2527.9,3.99882]
[1750380320358,0.86032781,2528.0,2527.9,3.2078]
[1750380320663,0.06933781,2528.0,2527.9,6.50414066]
[1750380320969,0.06933781,2528.0,2527.9,8.07320192]
[1750380321959,1.97708,2528.6,2528.0,1.97749]
[1750380322263,0.79092,2528.4,2528.3,0.79086]
[1750380322962,0.79087,2528.4,2528.3,0.79086]
[1750380323166,0.6788,2528.5,2528.4,0.79087]
[1750380323363,1.46963,2528.5,2528.4,0.79087]
[1750380323663,0.7908,2528.7,2528.6,0.79077]
[1750380323865,0.7908,2528.7,2528.6,3.99857]
[1750380324064,1.0,2528.9,2528.8,0.79074]
[1750380324463,1.0,2528.9,2528.8,3.29606066]
[1750380325566,3.13131,2528.9,2528.8,3.29606066]
[1750380326158,0.79077,2528.7,2528.6,4.77686126]
[1750380326362,0.79077,2528.7,2528.6,3.9986]
[1750380326967,0.6792,2528.7,2528.6,6.50392066]
[1750380327264,1.0,2528.9,2528.6,6.50392066]
[1750380327265,1.0,2528.9,2528.8,0.79074]
[1750380327470,1.0,2528.9,2528.8,3.29606066]
[1750380331373,1.3205,2529.3,2529.2,0.79062]
[1750380331575,1.3205,2529.3,2529.2,3.99842]
[1750380332274,2.11108,2529.3,2529.2,3.99842]
[1750380332969,1.06108,2529.3,2529.2,3.99842]
[1750380334869,1.13041781,2529.3,2529.2,3.99842]
[1750380335878,0.33983781,2529.3,2529.2,3.99842]
[1750380336076,1.00863781,2529.3,2529.2,3.99842]
[1750380336973,0.73813781,2529.3,2529.2,3.99842]
[1750380337870,1.52872781,2529.3,2529.2,3.99842]
[1750380338681,0.73813781,2529.3,2529.2,3.99842]
[1750380339380,1.52872781,2529.3,2529.2,3.99842]
[1750380341681,0.85992781,2529.3,2529.2,3.99842]
[1750380341879,0.06933781,2529.3,2529.2,3.99842]
[1750380342181,0.85992781,2529.3,2529.2,3.99842]
[1750380342783,0.06933781,2529.3,2529.2,3.99842]
[1750380343082,0.79055,2529.5,2529.4,0.7905]
[1750380343274,0.79055,2529.5,2529.4,3.29582066]
[1750380344276,0.6299,2529.6,2529.5,0.79052]
[1750380344476,0.6299,2529.6,2529.5,3.99832]
[1750380344880,1.42039,2529.6,2529.5,3.99832]
[1750380345281,0.6299,2529.6,2529.5,3.99832]
[1750380345476,1.42039,2529.6,2529.5,3.99832]
[1750380345682,2.66569,2529.6,2529.5,3.99832]
[1750380346185,1.8752,2529.6,2529.5,3.99832]
[1750380346587,1.41335,2529.8,2529.7,0.79046]
[1750380347285,2.65865,2529.8,2529.7,0.79046]
[1750380350086,2.72798781,2529.8,2529.7,0.79046]
[1750380350985,0.85978781,2529.8,2529.7,0.79046]
[1750380351389,2.21128781,2529.8,2529.7,0.79046]
[1750380352088,0.85978781,2529.8,2529.7,0.79046]
[1750380352290,0.06933781,2529.8,2529.7,0.79046]
[1750380352788,0.85976781,2529.8,2529.7,0.79046]
[1750380354088,2.10886781,2529.8,2529.7,0.79046]
[1750380354289,1.05886781,2529.8,2529.7,0.79046]
[1750380354987,1.84929781,2529.8,2529.7,0.79046]
[1750380355189,1.91863562,2529.8,2529.7,0.79046]
[1750380357292,1.91863562,2529.8,2529.7,2.35230593]
[1750380357988,0.79046,2529.7,2529.6,2.35231593]
[1750380358188,2.12976,2529.7,2529.6,0.79047]
[1750380360194,2.12976,2529.7,2529.6,3.15007049]
[1750380360893,2.12976,2529.7,2529.6,1.5667734]
[1750380361195,0.79049,2529.6,2529.5,3.2078]
[1750380361395,1.45579,2529.6,2529.5,7.27989406]
[1750380361591,1.3393,2529.7,2529.6,0.79049]
[1750380361795,1.3393,2529.7,2529.6,2.35766031]
[1750380362099,2.12976,2529.7,2529.6,1.56717031]
[1750380362597,0.79049,2529.6,2529.5,3.2078]
[1750380362896,3.29581066,2529.6,2529.5,3.2078]
[1750380364296,0.79049,2529.6,2529.5,3.2078]
[1750380364493,0.79049,2529.6,2529.0,1.97669]
[1750380364494,10.71312066,2529.6,2528.9,3.2078]
[1750380364690,0.79068,2529.0,2528.9,3.9985]
[1750380365594,0.6525,2529.1,2529.0,0.79068]
[1750380365794,0.6525,2529.1,2529.0,3.97150066]
[1750380367298,1.44315,2529.1,2529.0,3.97150066]
[1750380367997,0.6525,2529.1,2529.0,3.97150066]
[1750380368899,1.44315,2529.1,2529.0,3.97150066]
[1750380369090,0.6525,2529.1,2529.0,3.97150066]
[1750380369693,0.79061,2529.3,2529.2,0.79062]
[1750380375300,1.46568,2529.4,2529.3,0.79058]
[1750380376501,0.79062,2529.3,2529.2,0.79059]
[1750380377898,0.79062,2529.3,2528.9,7.54416049]
[1750380377899,0.79068,2529.0,2528.9,5.56740049]
[1750380378102,1.97678,2528.9,2528.3,3.2078]
[1750380378306,2.50532066,2528.7,2528.3,3.99867]
[1750380378508,0.79086,2528.5,2528.4,0.79086]
[1750380378806,0.79074,2528.8,2528.4,2.50532066]
[1750380379005,0.79074,2528.8,2528.7,0.79077]
[1750380379203,1.44722,2528.9,2528.8,0.79074]
[1750380379395,0.79076,2528.8,2528.7,0.79075]
[1750380379799,0.6565,2528.9,2528.8,0.79074]
[1750380380000,8.2492,2529.1,2529.0,0.79068]
[1750380380204,0.79068,2529.1,2529.0,0.79066]
[1750380380398,7.00463,2529.2,2529.1,0.79065]
[1750380380602,0.79067,2529.1,2529.0,0.79066]
[1750380381207,7.00464,2529.2,2529.1,0.79065]
[1750380381417,0.79064,2529.2,2529.1,0.79065]
[1750380381608,0.70513781,2529.3,2529.2,0.79062]
[1750380382198,0.70513781,2529.3,2529.2,3.99842]
[1750380382502,0.06933781,2529.3,2529.2,3.99842]
[1750380383100,0.85991781,2529.3,2529.2,3.99842]
[1750380383512,2.23461781,2529.3,2529.2,3.99842]
[1750380383706,2.23461781,2529.3,2529.2,3.2078]
[1750380386717,0.79071,2528.9,2528.8,3.15032049]
[1750380386913,0.79071,2528.9,2528.8,0.79072]
[1750380387519,0.7907,2529.0,2528.9,0.79069]
[1750380393113,0.7907,2529.0,2528.9,1.45149]
[1750380394421,0.7907,2529.0,2528.9,3.01925861]
[1750380395729,0.86003781,2529.0,2528.9,3.01925861]
[1750380402238,0.86003781,2529.0,2528.9,2.35845861]
[1750380404530,0.86003781,2529.0,2528.9,0.79069]
[1750380404836,0.06933781,2529.0,2528.9,0.79069]
[1750380405036,0.86001781,2529.0,2528.9,0.79069]
[1750380405340,0.86001781,2529.0,2528.9,3.15029049]
[1750380406741,0.06933781,2529.0,2528.9,3.15029049]
[1750380407242,7.0166,2529.4,2529.3,0.79055]
[1750380407435,7.6913,2529.4,2529.3,0.79055]
[1750380410038,7.76063781,2529.4,2529.3,0.79055]
[1750380410837,0.06933781,2529.4,2529.3,0.79055]
[1750380411035,0.06933781,2529.4,2529.3,2.35950182]
[1750380411236,0.85988781,2529.4,2529.3,2.35950182]
[1750380414153,0.06933781,2529.4,2529.3,2.35950182]
[1750380414542,0.85988781,2529.4,2529.3,2.35950182]
[1750380414743,0.06933781,2529.4,2529.3,2.35950182]
[1750380415037,0.79041,2530.0,2529.9,0.79037]
[1750380415243,1.47781,2530.0,2529.9,0.79037]
[1750380418144,0.79043,2529.9,2529.8,0.7904]
[1750380418353,0.79043,2529.8,2529.7,2.35857241]
[1750380418652,0.79043,2529.8,2529.7,0.79044]
[1750380420248,0.79043,2529.8,2529.7,2.35857241]
[1750380421053,0.79041,2529.9,2529.8,0.79043]
[1750380422051,0.79041,2529.9,2529.8,3.29575066]
[1750380422252,0.79037,2530.1,2530.0,0.79033]
[1750380422553,0.79033,2530.2,2530.1,0.79031]
[1750380423356,0.79033,2530.1,2530.0,3.29567066]
[1750380423656,0.79033,2530.1,2530.0,2.50532066]
[1750380423855,0.79037,2530.0,2529.9,5.56630241]
[1750380424357,1.71615,2530.2,2529.9,5.56630241]
[1750380424545,0.79037,2530.0,2529.9,5.56630241]
[1750380425453,0.79037,2530.0,2529.9,3.99817]
[1750380427059,1.42327,2530.1,2530.0,0.79038]
[1750380427252,0.85966781,2530.2,2530.1,0.79035]
[1750380427950,0.79034,2530.1,2530.0,3.29567066]
[1750380428150,1.42324,2530.1,2530.0,3.29567066]
[1750380428350,1.42324,2530.1,2530.0,0.79035]
[1750380429955,0.79038,2530.0,2529.9,3.2078]
[1750380430164,1.43278,2530.0,2529.9,3.2078]
[1750380430362,2.74298,2530.0,2529.9,3.2078]
[1750380431160,0.79044,2529.8,2529.7,1.56813241]
[1750380431461,0.79044,2529.8,2529.7,0.79046]
[1750380431963,1.46774,2529.8,2529.7,0.79046]
[1750380433160,0.79047,2529.7,2529.6,4.77593241]
[1750380433461,0.79059,2529.3,2529.2,1.56813241]
[1750380433766,0.79066,2529.1,2529.0,1.56813241]
[1750380434061,0.79072,2528.9,2528.8,1.56813241]
[1750380434263,0.79075,2528.8,2528.7,1.56813241]
[1750380434765,0.79075,2528.8,2528.7,2.35891241]
[1750380435469,0.79075,2528.8,2528.7,1.56813241]
[1750380435667,0.79078,2528.7,2528.6,2.35892241]
[1750380435966,1.47268,2528.7,2528.6,0.79079]
[1750380436666,1.47268,2528.7,2528.6,2.35554077]
[1750380437061,1.47268,2528.7,2528.6,1.56475077]
[1750380437861,0.6819,2528.7,2528.6,2.35556077]
[1750380438058,0.79077,2528.8,2528.7,0.79078]
[1750380438259,0.79077,2528.8,2528.7,3.29610066]
[1750380440667,0.6619,2528.9,2528.8,0.79075]
[1750380441259,0.6619,2528.9,2528.8,1.44995]
[1750380442273,1.45262,2528.9,2528.8,1.44995]
[1750380442567,0.79071,2529.0,2528.9,0.79067]
[1750380442761,1.46158,2529.1,2529.0,0.79069]
[1750380447166,3.2078,2530.0,2529.3,0.79059]
[1750380447464,1.2884,2529.9,2529.8,3.29576066]
[1750380447670,0.6512,2529.9,2529.8,3.29576066]
[1750380448573,1.44161,2529.9,2529.8,3.29576066]
[1750380448967,0.6512,2529.9,2529.8,3.29576066]
[1750380449273,0.79036,2530.1,2530.0,0.79038]
[1750380450472,0.79041,2530.0,2529.9,0.79039]
[1750380451273,0.79041,2529.9,2529.8,0.79041]
[1750380451961,0.79047,2529.8,2529.7,0.79045]
[1750380452368,0.79047,2529.7,2529.6,0.7905]
[1750380454576,0.85980781,2529.7,2529.6,0.7905]
[1750380455077,0.79053,2529.6,2529.5,0.79052]
[1750380455579,0.85982781,2529.7,2529.6,0.7905]
[1750380455776,0.85982781,2529.7,2529.6,3.29582066]
[1750380456079,0.06933781,2529.7,2529.6,3.29582066]
[1750380456773,0.06933781,2529.7,2529.6,4.65912066]
[1750380457474,0.6369,2530.2,2530.1,0.79034]
[1750380457675,1.42724,2530.2,2530.1,0.79034]
[1750380457878,0.79034,2530.1,2530.0,0.79035]
[1750380458378,2.0057,2530.2,2529.9,0.79039]
[1750380458379,0.79041,2530.0,2529.9,0.79039]
[1750380458573,0.79044,2529.8,2529.7,1.47996]
[1750380458779,0.79043,2529.9,2529.8,0.79041]
[1750380460983,0.79047,2529.8,2529.7,0.79045]
[1750380462186,0.79053,2529.6,2529.5,0.79053]
[1750380465487,0.79053,2529.6,2529.5,3.29585066]
[1750380465785,2.15791781,2529.7,2529.6,0.7905]
[1750380465985,1.52951781,2529.7,2529.6,0.7905]
[1750380466187,0.73903781,2529.7,2529.6,0.7905]
[1750380466375,0.73903781,2529.7,2529.6,1.4549]
[1750380466579,0.06933781,2529.7,2529.6,1.4549]
[1750380466780,0.85980781,2529.7,2529.6,1.4549]
[1750380466980,0.06933781,2529.7,2529.6,1.4549]
[1750380467382,0.06933781,2529.7,2529.6,2.1194]
[1750380468390,0.06933781,2529.7,2529.6,3.68415077]
[1750380468595,0.06933781,2529.7,2529.6,5.04235077]
[1750380470095,0.6407,2530.1,2530.0,0.79038]
[1750380471493,1.43107,2530.1,2530.0,0.79038]
[1750380473292,2.78677,2530.1,2530.0,0.79038]
[1750380474194,1.43107,2530.1,2530.0,0.79038]
[1750380474792,2.75797,2530.1,2530.0,0.79038]
[1750380476484,2.75797,2530.1,2529.9,1.56475077]
[1750380476689,0.79038,2530.0,2529.9,2.35513077]
[1750380479900,1.43107,2530.1,2530.0,0.79038]
[1750380480203,0.6862,2530.2,2530.1,0.79035]
[1750380480499,0.6862,2530.2,2530.1,2.35510077]
[1750380480902,0.79032,2530.2,2530.1,2.35510077]
[1750380481102,1.44122,2530.2,2530.1,2.35510077]
[1750380481297,3.2078,2530.3,2530.1,2.35510077]
[1750380481298,3.2078,2530.3,2530.2,0.79032]
[1750380481499,3.8587,2530.3,2530.2,0.79032]
[1750380481800,4.64901,2530.3,2530.2,0.79032]
[1750380483798,3.2078,2530.3,2530.2,0.79032]
[1750380484110,3.8931,2530.3,2530.2,2.35507077]
[1750380484698,3.8931,2530.3,2530.2,0.79032]
[1750380485002,2.7557,2530.6,2530.5,0.79022]
[1750380485401,1.9655,2530.6,2530.5,0.79022]
[1750380485897,0.6427,2530.6,2530.5,2.3568409]
[1750380486097,0.6853,2530.7,2530.6,0.79019]
[1750380486401,0.6841,2530.9,2530.6,0.79019]
[1750380486402,0.7901,2531.0,2530.9,0.79008]
[1750380486701,1.2573,2531.0,2530.9,0.79008]
[1750380487306,2.04736,2531.0,2530.9,0.79008]
[1750380488401,0.79012,2530.9,2530.8,0.79011]
[1750380490502,0.79015,2530.8,2530.7,0.79014]
[1750380491009,0.79013,2530.9,2530.8,0.79012]
[1750380491507,0.79015,2530.8,2530.7,0.79014]
[1750380492304,0.79013,2530.9,2530.8,0.79011]
[1750380493208,0.79016,2530.8,2530.7,0.79014]
[1750380494108,0.79016,2530.8,2530.7,3.99794]
[1750380494904,0.79019,2530.6,2530.5,0.79021]
[1750380495305,0.79019,2530.6,2530.5,3.29553066]
[1750380496012,2.79048,2530.7,2530.6,0.79019]
[1750380496207,0.679,2530.7,2530.6,0.79019]
[1750380496509,6.203,2531.0,2530.9,0.7901]
[1750380496700,7.63972,2531.0,2530.9,0.7901]
[1750380496897,8.96102,2531.0,2530.9,0.7901]
[1750380498712,2.75802,2531.0,2530.9,0.7901]
[1750380499410,0.6466,2531.0,2530.9,0.7901]
[1750380500205,0.71593781,2531.0,2530.9,0.7901]
[1750380500510,1.50600781,2531.0,2530.9,0.7901]
[1750380500810,0.71593781,2531.0,2530.9,0.7901]
[1750380502712,1.50600781,2531.0,2530.9,0.7901]
[1750380502914,0.71593781,2531.0,2530.9,0.7901]
[1750380503314,1.50600781,2531.0,2530.9,0.7901]
[1750380503914,0.71593781,2531.0,2530.9,0.7901]
[1750380504312,1.50600781,2531.0,2530.9,0.7901]
[1750380504508,0.06933781,2531.0,2530.9,0.7901]
[1750380505119,0.85940781,2531.0,2530.9,0.7901]
[1750380507215,0.7901,2530.9,2530.7,5.42331693]
[1750380507422,0.7901,2530.9,2530.8,2.35424693]
[1750380507722,2.0998,2530.9,2530.8,2.35424693]
[1750380508120,2.0998,2530.9,2530.7,3.99796]
[1750380508121,0.79013,2530.8,2530.7,3.99796]
[1750380508311,2.74513,2530.8,2530.7,3.99796]
[1750380509620,2.74513,2530.8,2530.7,5.56207693]
[1750380510615,1.955,2530.8,2530.7,5.56207693]
[1750380510921,0.6453,2530.8,2530.7,5.56207693]
[1750380511121,1.43543,2530.8,2530.7,5.56207693]
[1750380512115,0.79013,2530.8,2530.7,5.56207693]
[1750380512316,0.79013,2530.9,2530.8,0.7901]
[1750380512621,0.79013,2530.9,2530.8,4.85903336]
[1750380513323,0.85942781,2531.0,2530.9,0.7901]
[1750380513626,0.85942781,2531.0,2530.9,2.3537127]
[1750380513627,0.06933781,2531.0,2530.9,2.3537127]
[1750380514521,0.79007,2531.0,2530.9,3.29542066]
[1750380515624,0.79007,2531.0,2530.9,5.64761928]
[1750380517112,0.79007,2531.0,2530.9,3.29542066]
[1750380517623,0.7901,2530.9,2530.8,3.14229862]
[1750380518222,0.7901,2530.9,2530.8,2.35219862]
[1750380518523,0.85943781,2530.9,2530.8,2.35219862]
[1750380518726,7.06143781,2530.9,2530.8,2.35219862]
[1750380518924,7.74973781,2530.9,2530.8,2.35219862]
[1750380519126,0.79013,2530.8,2530.7,5.55999862]
[1750380519323,2.05723,2530.8,2530.7,5.55999862]
[1750380521220,2.05723,2530.8,2530.7,2.35219862]
[1750380521416,0.79016,2530.7,2530.6,2.35219862]
[1750380521621,5.22388066,2530.7,2530.6,2.35219862]
[1750380521824,0.79019,2530.6,2530.5,1.56799434]
[1750380522128,0.79022,2530.5,2530.4,4.77579434]
[1750380522328,6.99222,2530.5,2530.4,4.77579434]
[1750380523429,0.79026,2530.4,2530.3,1.2906431]
[1750380523627,0.79032,2530.2,2530.1,2.35219862]
[1750380523822,0.79035,2530.1,2530.0,2.35219862]
[1750380524024,2.60906,2530.3,2529.9,2.35219862]
[1750380524025,0.79038,2530.0,2529.9,2.35219862]
[1750380524331,0.79041,2529.9,2529.8,8.16431928]
[1750380524528,2.10621,2529.9,2529.8,3.3068]
[1750380524929,2.10621,2529.9,2529.8,0.099]
[1750380525439,12.81933066,2529.9,2529.8,0.099]
[1750380526130,12.81933066,2529.9,2529.2,6.35060862]
[1750380526131,1.97621,2529.7,2529.2,3.2078]
[1750380526331,0.7906,2529.3,2529.2,3.2078]
[1750380527130,1.97652,2529.3,2528.9,5.55999862]
[1750380527341,0.79069,2529.0,2528.9,3.2078]
[1750380528133,0.79069,2529.0,2528.9,5.71312066]
[1750380528329,7.66408,2529.1,2529.0,0.79069]
[1750380528535,7.00868,2529.1,2529.0,0.79069]
[1750380528831,0.79069,2529.0,2528.9,6.50382066]
[1750380529335,1.8974,2529.4,2528.9,7.68988066]
[1750380529533,7.00958,2529.4,2529.3,0.79057]
[1750380529742,0.7906,2529.3,2529.2,3.29593066]
[1750380532141,0.7906,2529.3,2529.2,2.50532066]
[1750380532441,0.7906,2529.3,2529.2,3.29595066]
[1750380532831,4.48175066,2529.4,2528.6,3.2078]
[1750380533031,4.48175066,2529.4,2528.5,1.3177]
[1750380533032,0.79082,2528.6,2528.5,1.3177]
[1750380533238,0.79088,2528.4,2528.3,3.2078]
[1750380533735,0.79088,2528.4,2528.1,2.50532066]
[1750380533736,0.79094,2528.2,2528.1,2.50532066]
[1750380534240,0.79093,2528.3,2528.1,3.29627066]
[1750380534433,3.2078,2528.5,2528.1,3.29627066]
[1750380534434,0.79094,2528.2,2528.1,2.50532066]
[1750380534634,0.79094,2528.2,2528.1,3.29630066]
[1750380534835,0.79094,2528.3,2528.1,3.29630066]
[1750380535043,0.79094,2528.3,2528.2,0.79094]
[1750380535244,0.79094,2528.3,2528.1,2.50532066]
[1750380535245,0.79094,2528.3,2528.0,1.3177]
[1750380535542,0.79094,2528.3,2528.2,0.79094]
[1750380536943,0.79101,2528.0,2527.9,3.2078]
[1750380537137,0.79107,2527.8,2527.7,0.79108]
[1750380537939,0.79099,2528.1,2528.0,0.79099]
[1750380538141,0.6529,2528.2,2528.1,0.79098]
[1750380538444,7.01194,2528.2,2528.1,3.29630066]
[1750380538943,0.79094,2528.2,2528.1,3.29630066]
[1750380539145,7.01194,2528.2,2528.1,3.29630066]
[1750380539637,0.79098,2528.1,2528.0,0.79098]
[1750380540644,0.79101,2528.0,2527.9,3.29634066]
[1750380540840,0.79101,2528.0,2527.9,0.79102]
[1750380541035,0.79104,2527.9,2527.8,3.99886]
[1750380541236,0.79102,2528.0,2527.9,0.79101]
[1750380541442,6.221,2528.2,2527.8,3.2078]
[1750380541646,0.79101,2528.1,2528.0,0.79098]
[1750380542036,0.79103,2528.0,2527.9,0.79101]
[1750380542451,1.2485,2528.1,2528.0,0.79101]
[1750380542634,6.222,2528.1,2528.0,0.79101]
[1750380543240,7.01298,2528.1,2528.0,0.79101]
[1750380543440,0.79104,2528.0,2527.8,3.2078]
[1750380543635,0.79104,2527.9,2527.8,3.2078]
[1750380544138,0.79104,2527.9,2527.8,3.99887]
[1750380544339,0.79104,2527.9,2527.8,3.2078]
[1750380544649,7.67984,2528.0,2527.9,0.79104]
[1750380545054,0.79104,2527.9,2527.8,3.99885]
[1750380546451,0.79104,2527.9,2527.8,3.2078]
[1750380547052,0.79104,2527.9,2527.8,3.99887]
[1750380547554,0.79104,2527.9,2527.8,3.2078]
[1750380549050,0.79104,2527.9,2527.8,3.99887]
[1750380549953,0.79104,2527.9,2527.8,3.2078]
[1750380550154,0.79109,2527.8,2527.7,0.79105]
[1750380550953,0.79106,2527.9,2527.8,0.79104]
[1750380553756,0.79113,2527.7,2527.6,0.7911]
[1750380553954,0.79113,2527.6,2527.5,2.05314]
[1750380554262,0.79113,2527.7,2527.6,0.7911]
[1750380558149,0.6658,2528.0,2527.6,1.97779]
[1750380558355,7.70983,2528.0,2527.9,0.79104]
[1750380558751,0.79104,2527.9,2527.8,5.99850947]
[1750380558948,0.06933781,2528.1,2527.9,0.79101]
[1750380559144,0.6341,2528.0,2527.7,3.2078]
[1750380559353,0.79105,2527.9,2527.8,0.79104]
[1750380559551,1.42514,2528.0,2527.9,0.79104]
[1750380560159,0.79107,2527.9,2527.8,0.79105]
[1750380561554,0.79103,2528.0,2527.9,0.79104]
[1750380561851,0.6837,2528.2,2527.9,0.79104]
[1750380561852,0.791,2528.1,2528.0,0.79098]
[1750380562451,0.79096,2528.2,2528.1,0.79093]
[1750380562961,0.79089,2528.4,2528.3,0.79091]
[1750380563162,0.79089,2528.4,2528.3,1.57006093]
[1750380563558,0.79094,2528.2,2528.1,3.1460514]
[1750380565267,0.79094,2528.2,2528.1,2.3550914]
[1750380565758,0.79094,2528.2,2528.1,3.1460714]
[1750380565759,2.12104,2528.2,2528.1,3.1460714]
[1750380565955,1.2837,2528.3,2528.2,0.79094]
[1750380566160,0.79091,2528.4,2528.3,0.79086]
[1750380566360,0.79091,2528.4,2528.3,2.3613967]
[1750380566562,0.79091,2528.4,2528.3,2.36133873]
[1750380569571,0.79091,2528.4,2528.3,1.57047873]
[1750380570060,0.79091,2528.3,2528.2,1.57047873]
[1750380570257,2.13611,2528.3,2528.2,1.57047873]
[1750380570968,1.3452,2528.3,2528.0,5.5628914]
[1750380571165,0.79098,2528.1,2528.0,5.5628914]
[1750380571472,0.79098,2528.1,2528.0,1.57049702]
[1750380572063,0.79101,2528.0,2527.9,1.57049702]
[1750380573072,0.79101,2528.0,2527.9,2.36153702]
[1750380573272,0.79101,2528.0,2527.9,1.57049702]
[1750380573873,0.79101,2528.0,2527.9,2.36153702]
[1750380574272,0.86034781,2528.0,2527.9,2.36153702]